[Event "*** Titled Tuesday Blitz"]
[Site "Chess.com"]
[Date "2021.02.16"]
[Round "1"]
[White "LenkaPtacnikova"]
[Black "DrCeltic"]
[Result "0-1"]
[WhiteElo "2114"]
[BlackElo "2503"]
[TimeControl "180+1"]
[EndTime "10:07:32 PST"]
[Termination "DrCeltic won by resignation"]

1. e4 {[%clk 0:02:52.8]} 1... c5 {[%clk 0:03:00]} 2. Nf3 {[%clk 0:02:51]} 2...
e6 {[%clk 0:03:00.1]} 3. d4 {[%clk 0:02:43.4]} 3... cxd4 {[%clk 0:03:01]} 4.
Nxd4 {[%clk 0:02:43.5]} 4... Nf6 {[%clk 0:03:01.5]} 5. Bd3 {[%clk 0:02:39.7]}
5... Nc6 {[%clk 0:03:00.9]} 6. Nxc6 {[%clk 0:02:36.3]} 6... bxc6 {[%clk
0:03:01.8]} 7. c4 {[%clk 0:02:36.3]} 7... Bb4+ {[%clk 0:02:57.7]} 8. Bd2 {[%clk
0:02:34.8]} 8... a5 {[%clk 0:02:48.8]} 9. O-O {[%clk 0:02:31.3]} 9... Qc7 {[%clk
0:02:46.2]} 10. Re1 {[%clk 0:02:14.6]} 10... Bd6 {[%clk 0:02:38]} 11. h3 {[%clk
0:02:11.8]} 11... O-O {[%clk 0:02:34.5]} 12. Bc3 {[%clk 0:02:11.3]} 12... e5
{[%clk 0:02:34.9]} 13. Nd2 {[%clk 0:01:57.9]} 13... Be7 {[%clk 0:02:32.6]} 14.
Rc1 {[%clk 0:01:56.2]} 14... d6 {[%clk 0:02:30.4]} 15. c5 {[%clk 0:01:47.8]}
15... dxc5 {[%clk 0:02:27.3]} 16. Bc4 {[%clk 0:01:39.1]} 16... Ba6 {[%clk
0:02:12.8]} 17. Bxa6 {[%clk 0:01:35.9]} 17... Rxa6 {[%clk 0:02:13]} 18. Nc4
{[%clk 0:01:35.3]} 18... Nd7 {[%clk 0:02:08.4]} 19. Qa4 {[%clk 0:01:27.7]} 19...
Bg5 {[%clk 0:01:51.2]} 20. Rcd1 {[%clk 0:01:25]} 20... Bf6 {[%clk 0:01:40.8]}
21. Rd3 {[%clk 0:01:22.9]} 21... Nb6 {[%clk 0:01:37.7]} 22. Nxb6 {[%clk
0:01:21.5]} 22... Qxb6 {[%clk 0:01:37.5]} 23. Red1 {[%clk 0:01:16.7]} 23... h6
{[%clk 0:01:36.6]} 24. Rd7 {[%clk 0:01:09.3]} 24... Qb5 {[%clk 0:01:33.3]} 25.
Qc2 {[%clk 0:01:02.4]} 25... a4 {[%clk 0:01:29]} 26. a3 {[%clk 0:00:57.2]} 26...
Qc4 {[%clk 0:01:22]} 27. R1d6 {[%clk 0:00:51.2]} 27... Rb6 {[%clk 0:01:13.1]}
28. Qd1 {[%clk 0:00:46.9]} 28... Qxe4 {[%clk 0:01:07.6]} 29. Qh5 {[%clk
0:00:34.2]} 29... Qf4 {[%clk 0:00:57.2]} 30. g3 {[%clk 0:00:19.3]} 30... Qc1+
{[%clk 0:00:40.4]} 31. Kg2 {[%clk 0:00:18.3]} 31... Qc2 {[%clk 0:00:38]} 32. Qg4
{[%clk 0:00:17.7]} 32... Kh7 {[%clk 0:00:31.6]} 33. Rd2 {[%clk 0:00:14.8]} 33...
Qb1 {[%clk 0:00:30.1]} 34. Qxa4 {[%clk 0:00:12.8]} 34... Qf5 {[%clk 0:00:22.5]}
35. Qc4 {[%clk 0:00:12.3]} 35... Bg5 {[%clk 0:00:18.7]} 36. R2d6 {[%clk
0:00:09.4]} 36... Rbb8 {[%clk 0:00:14.2]} 37. Rxc6 {[%clk 0:00:08.2]} 37... Qxd7
{[%clk 0:00:14]} 38. Rxc5 {[%clk 0:00:07.2]} 38... Rbc8 {[%clk 0:00:13.1]} 39.
Qf4 {[%clk 0:00:06.1]} 39... exf4 {[%clk 0:00:12.7]} 0-1

[Event "*** Titled Tuesday Blitz"]
[Site "Chess.com"]
[Date "2021.02.16"]
[Round "1"]
[White "Gahan-MG"]
[Black "ClydeHillKid"]
[Result "0-1"]
[WhiteElo "2634"]
[BlackElo "2360"]
[TimeControl "180+1"]
[EndTime "10:07:33 PST"]
[Termination "ClydeHillKid won by resignation"]

1. e4 {[%clk 0:03:00.9]} 1... e6 {[%clk 0:02:58.8]} 2. b3 {[%clk 0:03:00.7]}
2... d5 {[%clk 0:02:57.4]} 3. Bb2 {[%clk 0:03:01]} 3... Nf6 {[%clk 0:02:53.3]}
4. e5 {[%clk 0:03:00.8]} 4... Nfd7 {[%clk 0:02:53]} 5. c4 {[%clk 0:03:01.7]}
5... c5 {[%clk 0:02:51.2]} 6. cxd5 {[%clk 0:03:01]} 6... exd5 {[%clk 0:02:52.1]}
7. f4 {[%clk 0:03:00.4]} 7... Nc6 {[%clk 0:02:52.1]} 8. Nf3 {[%clk 0:03:00.3]}
8... d4 {[%clk 0:02:46.2]} 9. Bc4 {[%clk 0:02:59.4]} 9... Be7 {[%clk 0:02:42]}
10. O-O {[%clk 0:02:58]} 10... O-O {[%clk 0:02:41.1]} 11. d3 {[%clk 0:02:49.2]}
11... Nb6 {[%clk 0:02:41]} 12. Nbd2 {[%clk 0:02:48.7]} 12... Nxc4 {[%clk
0:02:40.9]} 13. dxc4 {[%clk 0:02:44.5]} 13... Bf5 {[%clk 0:02:37.8]} 14. Qe2
{[%clk 0:02:42.1]} 14... Qd7 {[%clk 0:02:34.4]} 15. Rad1 {[%clk 0:02:37.8]}
15... h6 {[%clk 0:02:31.3]} 16. Ne4 {[%clk 0:02:36.9]} 16... Qe6 {[%clk
0:02:29.3]} 17. Ng3 {[%clk 0:02:32.1]} 17... g6 {[%clk 0:02:26.8]} 18. Nxf5
{[%clk 0:02:31]} 18... Qxf5 {[%clk 0:02:27.7]} 19. Qd3 {[%clk 0:02:28.7]} 19...
Qxf4 {[%clk 0:02:25]} 20. Nxd4 {[%clk 0:02:19.2]} 20... Nxe5 {[%clk 0:02:14.7]}
21. Qe2 {[%clk 0:02:04.7]} 21... Qg5 {[%clk 0:02:05.7]} 22. Bc1 {[%clk
0:01:49.1]} 22... Qh5 {[%clk 0:01:45.3]} 23. Qxh5 {[%clk 0:01:48.3]} 23... gxh5
{[%clk 0:01:46.2]} 24. Nf5 {[%clk 0:01:48.4]} 24... Bg5 {[%clk 0:01:45.1]} 25.
Nxh6+ {[%clk 0:01:47.4]} 25... Bxh6 {[%clk 0:01:44.8]} 26. Bxh6 {[%clk
0:01:48.3]} 26... Rfd8 {[%clk 0:01:44.8]} 27. Bg5 {[%clk 0:01:44.7]} 27... Rxd1
{[%clk 0:01:39.8]} 28. Rxd1 {[%clk 0:01:45.6]} 28... Kg7 {[%clk 0:01:39.7]} 29.
Rd5 {[%clk 0:01:43.5]} 29... Re8 {[%clk 0:01:32.5]} 30. h3 {[%clk 0:01:36.4]}
30... b6 {[%clk 0:01:25.2]} 31. Kf2 {[%clk 0:01:33.3]} 31... f6 {[%clk
0:01:23.1]} 32. Bf4 {[%clk 0:01:33.5]} 32... Re7 {[%clk 0:01:21.5]} 33. Bxe5
{[%clk 0:01:26.8]} 33... fxe5 {[%clk 0:01:22.4]} 34. Ke3 {[%clk 0:01:25.5]}
34... Kf6 {[%clk 0:01:21.6]} 35. Rd6+ {[%clk 0:01:19.2]} 35... Kf5 {[%clk
0:01:18]} 36. Rh6 {[%clk 0:01:18.9]} 36... Kg5 {[%clk 0:01:14.5]} 37. Rh8 {[%clk
0:01:18.8]} 37... e4 {[%clk 0:01:13.4]} 38. g3 {[%clk 0:01:14.5]} 38... Kg6
{[%clk 0:01:02]} 39. h4 {[%clk 0:01:10.3]} 39... Re5 {[%clk 0:00:38.7]} 40. Rg8+
{[%clk 0:01:07.3]} 40... Kf6 {[%clk 0:00:37.5]} 41. Rf8+ {[%clk 0:01:06.4]}
41... Kg6 {[%clk 0:00:36.1]} 42. Rf4 {[%clk 0:01:06.5]} 42... a6 {[%clk
0:00:17.2]} 43. Rxe4 {[%clk 0:01:06.7]} 43... Kf5 {[%clk 0:00:17.5]} 44. Rxe5+
{[%clk 0:01:05.1]} 44... Kxe5 {[%clk 0:00:18.4]} 45. a3 {[%clk 0:01:00.5]} 45...
Kf5 {[%clk 0:00:17.3]} 46. Kf3 {[%clk 0:00:58.4]} 46... b5 {[%clk 0:00:17.4]}
47. cxb5 {[%clk 0:00:56.3]} 47... axb5 {[%clk 0:00:18.3]} 48. a4 {[%clk
0:00:56.9]} 48... c4 {[%clk 0:00:18.7]} 49. a5 {[%clk 0:00:18.9]} 49... cxb3
{[%clk 0:00:17.6]} 50. a6 {[%clk 0:00:19.8]} 50... b2 {[%clk 0:00:17.9]} 51. a7
{[%clk 0:00:19.4]} 51... b1=Q {[%clk 0:00:17.9]} 52. a8=Q {[%clk 0:00:20.3]}
52... Qh1+ {[%clk 0:00:17.6]} 0-1

[Event "*** Titled Tuesday Blitz"]
[Site "Chess.com"]
[Date "2021.02.16"]
[Round "1"]
[White "Trickster_Pony"]
[Black "Zmeeed63"]
[Result "0-1"]
[WhiteElo "1505"]
[BlackElo "2472"]
[TimeControl "180+1"]
[EndTime "10:07:33 PST"]
[Termination "Zmeeed63 won on time"]

1. c4 {[%clk 0:02:59.7]} 1... e6 {[%clk 0:02:57.6]} 2. g3 {[%clk 0:02:58]} 2...
d5 {[%clk 0:02:58]} 3. Bg2 {[%clk 0:02:54.8]} 3... Nf6 {[%clk 0:02:58]} 4. Nf3
{[%clk 0:02:43]} 4... Be7 {[%clk 0:02:57.3]} 5. O-O {[%clk 0:02:41.1]} 5... O-O
{[%clk 0:02:55.8]} 6. b3 {[%clk 0:02:32.1]} 6... c6 {[%clk 0:02:54.2]} 7. Bb2
{[%clk 0:02:29.7]} 7... Nbd7 {[%clk 0:02:53]} 8. d3 {[%clk 0:02:28.3]} 8... b6
{[%clk 0:02:50.8]} 9. Nbd2 {[%clk 0:02:27.7]} 9... Bb7 {[%clk 0:02:49.8]} 10. a3
{[%clk 0:02:18.1]} 10... Rc8 {[%clk 0:02:47.3]} 11. e4 {[%clk 0:02:14.6]} 11...
Nc5 {[%clk 0:02:39.3]} 12. Qc2 {[%clk 0:02:04.3]} 12... a5 {[%clk 0:02:27.3]}
13. b4 {[%clk 0:01:50.4]} 13... axb4 {[%clk 0:02:24.3]} 14. axb4 {[%clk
0:01:51.3]} 14... Na6 {[%clk 0:02:24.6]} 15. Qb3 {[%clk 0:01:44]} 15... Nxb4
{[%clk 0:02:19.8]} 16. Ra7 {[%clk 0:01:38.4]} 16... Qd7 {[%clk 0:02:12.1]} 17.
Ba3 {[%clk 0:01:17.3]} 17... c5 {[%clk 0:01:53.8]} 18. exd5 {[%clk 0:00:58.1]}
18... exd5 {[%clk 0:01:53]} 19. Bxb4 {[%clk 0:00:56.6]} 19... cxb4 {[%clk
0:01:53.9]} 20. cxd5 {[%clk 0:00:45.9]} 20... Rc3 {[%clk 0:01:36.4]} 21. Qa2
{[%clk 0:00:40.1]} 21... Ra3 {[%clk 0:01:27.2]} 22. Rxa3 {[%clk 0:00:21.8]}
22... bxa3 {[%clk 0:01:28.1]} 23. Ne5 {[%clk 0:00:21.3]} 23... Qc7 {[%clk
0:01:19.4]} 24. Nc6 {[%clk 0:00:19.3]} 24... Bd6 {[%clk 0:01:08.4]} 25. Nc4
{[%clk 0:00:17]} 25... Ra8 {[%clk 0:01:06]} 26. Re1 {[%clk 0:00:15.6]} 26... b5
{[%clk 0:01:02.6]} 27. Nxd6 {[%clk 0:00:15]} 27... Qxd6 {[%clk 0:01:03.5]} 28.
Rb1 {[%clk 0:00:12.2]} 28... Qc5 {[%clk 0:00:35.8]} 29. d4 {[%clk 0:00:10.8]}
29... Qc4 {[%clk 0:00:30.2]} 30. Qa1 {[%clk 0:00:08.1]} 30... a2 {[%clk
0:00:25.9]} 31. Rc1 {[%clk 0:00:08]} 31... Qb3 {[%clk 0:00:22]} 32. d6 {[%clk
0:00:07.3]} 32... Nd7 {[%clk 0:00:18]} 33. Ne7+ {[%clk 0:00:06.9]} 33... Kf8
{[%clk 0:00:14.7]} 34. Bxb7 {[%clk 0:00:07.3]} 34... Rb8 {[%clk 0:00:12.6]} 35.
Bg2 {[%clk 0:00:05.7]} 35... Qa3 {[%clk 0:00:13.1]} 36. Re1 {[%clk 0:00:04.9]}
36... b4 {[%clk 0:00:13.2]} 37. Nc6 {[%clk 0:00:04.4]} 37... Rc8 {[%clk
0:00:12.7]} 38. Ne5 {[%clk 0:00:03.2]} 38... Nxe5 {[%clk 0:00:10.8]} 39. dxe5
{[%clk 0:00:03]} 39... b3 {[%clk 0:00:11.2]} 0-1

[Event "*** Titled Tuesday Blitz"]
[Site "Chess.com"]
[Date "2021.02.16"]
[Round "1"]
[White "szefru"]
[Black "davidkalashian"]
[Result "0-1"]
[WhiteElo "2260"]
[BlackElo "2573"]
[TimeControl "180+1"]
[EndTime "10:07:34 PST"]
[Termination "davidkalashian won by resignation"]

1. Nf3 {[%clk 0:02:55.9]} 1... Nf6 {[%clk 0:02:59.2]} 2. d4 {[%clk 0:02:55.4]}
2... e6 {[%clk 0:02:59.1]} 3. g3 {[%clk 0:02:55.8]} 3... d5 {[%clk 0:02:58.6]}
4. Bg2 {[%clk 0:02:56.2]} 4... Be7 {[%clk 0:02:58.4]} 5. b3 {[%clk 0:02:56.3]}
5... O-O {[%clk 0:02:58.6]} 6. Bb2 {[%clk 0:02:56.7]} 6... c5 {[%clk 0:02:59.3]}
7. Nbd2 {[%clk 0:02:57]} 7... Nc6 {[%clk 0:02:59.9]} 8. e3 {[%clk 0:02:57]} 8...
b6 {[%clk 0:02:58.3]} 9. a4 {[%clk 0:02:56.5]} 9... Ba6 {[%clk 0:02:52.8]} 10.
Bf1 {[%clk 0:02:54.2]} 10... Bxf1 {[%clk 0:02:50.7]} 11. Kxf1 {[%clk 0:02:55.1]}
11... Rc8 {[%clk 0:02:51.4]} 12. Kg2 {[%clk 0:02:54.2]} 12... cxd4 {[%clk
0:02:51.6]} 13. Nxd4 {[%clk 0:02:53.7]} 13... Nxd4 {[%clk 0:02:51.1]} 14. Bxd4
{[%clk 0:02:54.6]} 14... Qc7 {[%clk 0:02:50.5]} 15. Rc1 {[%clk 0:02:52.3]} 15...
Ba3 {[%clk 0:02:45.3]} 16. Ra1 {[%clk 0:02:48.3]} 16... Bb4 {[%clk 0:02:37.2]}
17. Rc1 {[%clk 0:02:24.7]} 17... Bc3 {[%clk 0:02:35.3]} 18. Bxf6 {[%clk
0:02:19.3]} 18... Bxf6 {[%clk 0:02:33.5]} 19. c4 {[%clk 0:02:15.4]} 19... dxc4
{[%clk 0:02:21.8]} 20. Rxc4 {[%clk 0:02:11.2]} 20... Qb7+ {[%clk 0:02:18.3]} 21.
Qf3 {[%clk 0:02:05.3]} 21... Qd7 {[%clk 0:02:07]} 22. Rxc8 {[%clk 0:01:59.8]}
22... Rxc8 {[%clk 0:02:05.6]} 23. Ne4 {[%clk 0:01:59.8]} 23... Be7 {[%clk
0:02:05.3]} 24. Rd1 {[%clk 0:01:58.3]} 24... Qc6 {[%clk 0:02:01.3]} 25. h4
{[%clk 0:01:45]} 25... h6 {[%clk 0:01:40.1]} 26. Kh3 {[%clk 0:01:33.4]} 26...
Kf8 {[%clk 0:01:24]} 27. Rd4 {[%clk 0:01:27]} 27... Ke8 {[%clk 0:01:03.4]} 28.
Rc4 {[%clk 0:01:17.3]} 28... Qd7 {[%clk 0:00:59.7]} 29. Rxc8+ {[%clk 0:01:12]}
29... Qxc8 {[%clk 0:01:00.6]} 30. Qh5 {[%clk 0:01:04.4]} 30... Qc2 {[%clk
0:00:54.2]} 31. Qb5+ {[%clk 0:01:01.4]} 31... Kf8 {[%clk 0:00:50.7]} 32. Qc4
{[%clk 0:00:55.9]} 32... Qxc4 {[%clk 0:00:35.6]} 33. bxc4 {[%clk 0:00:56.8]}
33... Bb4 {[%clk 0:00:35.7]} 34. Kg4 {[%clk 0:00:55.9]} 34... f5+ {[%clk
0:00:35.1]} 35. Kf3 {[%clk 0:00:55]} 35... fxe4+ {[%clk 0:00:34.8]} 36. Kxe4
{[%clk 0:00:55.9]} 36... Ke7 {[%clk 0:00:35.7]} 37. f4 {[%clk 0:00:55.8]} 37...
h5 {[%clk 0:00:34.9]} 38. f5 {[%clk 0:00:54.3]} 38... Be1 {[%clk 0:00:32.5]} 39.
Kf4 {[%clk 0:00:53.5]} 39... exf5 {[%clk 0:00:31.6]} 40. Kxf5 {[%clk 0:00:53]}
40... Bxg3 {[%clk 0:00:30.8]} 41. Kg5 {[%clk 0:00:53.9]} 41... g6 {[%clk
0:00:25.6]} 42. Kxg6 {[%clk 0:00:53.6]} 42... Bxh4 {[%clk 0:00:25.3]} 43. Kxh5
{[%clk 0:00:54.5]} 43... Bf2 {[%clk 0:00:26.2]} 44. Kg4 {[%clk 0:00:54.9]} 44...
Ke6 {[%clk 0:00:27.1]} 45. Kf3 {[%clk 0:00:54.3]} 45... Be1 {[%clk 0:00:28]} 46.
Ke2 {[%clk 0:00:54.2]} 46... Bb4 {[%clk 0:00:28]} 47. Kd3 {[%clk 0:00:54.4]}
47... Ke5 {[%clk 0:00:28.3]} 48. Kc2 {[%clk 0:00:53.3]} 48... Ke4 {[%clk
0:00:28.1]} 49. Kb3 {[%clk 0:00:54.2]} 49... Bc5 {[%clk 0:00:26.5]} 50. a5
{[%clk 0:00:53.1]} 50... Kxe3 {[%clk 0:00:24.5]} 51. Ka4 {[%clk 0:00:53.1]}
51... Kd4 {[%clk 0:00:21.7]} 52. Kb5 {[%clk 0:00:54]} 52... bxa5 {[%clk
0:00:20.4]} 53. Kxa5 {[%clk 0:00:53.5]} 53... Kxc4 {[%clk 0:00:20.5]} 54. Ka6
{[%clk 0:00:54.4]} 54... Kb4 {[%clk 0:00:20.3]} 55. Kb7 {[%clk 0:00:54.1]} 55...
a5 {[%clk 0:00:21.2]} 56. Kc6 {[%clk 0:00:54.9]} 56... a4 {[%clk 0:00:21.9]} 0-1

[Event "*** Titled Tuesday Blitz"]
[Site "Chess.com"]
[Date "2021.02.16"]
[Round "1"]
[White "Piotrek1979"]
[Black "Alexander_Moskalenko"]
[Result "1/2-1/2"]
[WhiteElo "2416"]
[BlackElo "2765"]
[TimeControl "180+1"]
[EndTime "10:07:35 PST"]
[Termination "Game drawn - insufficient material"]

1. e4 {[%clk 0:03:00.1]} 1... e5 {[%clk 0:03:00.4]} 2. Nf3 {[%clk 0:03:00.4]}
2... Nc6 {[%clk 0:03:01]} 3. Bb5 {[%clk 0:03:00.8]} 3... a6 {[%clk 0:02:59.2]}
4. Ba4 {[%clk 0:03:00.3]} 4... Nf6 {[%clk 0:02:59.6]} 5. d3 {[%clk 0:03:00.2]}
5... b5 {[%clk 0:02:58.2]} 6. Bb3 {[%clk 0:02:59.6]} 6... Be7 {[%clk 0:02:55.1]}
7. a4 {[%clk 0:02:58.1]} 7... b4 {[%clk 0:02:52.5]} 8. a5 {[%clk 0:02:57.4]}
8... d6 {[%clk 0:02:52.9]} 9. h3 {[%clk 0:02:55.3]} 9... O-O {[%clk 0:02:53.2]}
10. Be3 {[%clk 0:02:54.5]} 10... Be6 {[%clk 0:02:53.4]} 11. Nbd2 {[%clk
0:02:53.5]} 11... Bxb3 {[%clk 0:02:47.1]} 12. Nxb3 {[%clk 0:02:52.7]} 12... d5
{[%clk 0:02:47.4]} 13. Nfd2 {[%clk 0:02:43.2]} 13... d4 {[%clk 0:02:21]} 14. Bg5
{[%clk 0:02:41.8]} 14... Ne8 {[%clk 0:02:21.4]} 15. Bxe7 {[%clk 0:02:38.8]}
15... Qxe7 {[%clk 0:02:22.3]} 16. Nc4 {[%clk 0:02:35]} 16... g6 {[%clk
0:02:04.4]} 17. O-O {[%clk 0:02:33.9]} 17... Ng7 {[%clk 0:02:05]} 18. f4 {[%clk
0:02:19.2]} 18... exf4 {[%clk 0:01:58.4]} 19. Rxf4 {[%clk 0:02:08.9]} 19... f5
{[%clk 0:01:58]} 20. exf5 {[%clk 0:01:36.9]} 20... Nxf5 {[%clk 0:01:52.4]} 21.
Qf3 {[%clk 0:01:35.8]} 21... Ne5 {[%clk 0:01:50.8]} 22. Qd5+ {[%clk 0:01:34.6]}
22... Nf7 {[%clk 0:01:47.9]} 23. Re4 {[%clk 0:01:26.7]} 23... Qf6 {[%clk
0:01:42]} 24. Rae1 {[%clk 0:01:20.4]} 24... Rad8 {[%clk 0:01:41.3]} 25. Qe6
{[%clk 0:01:17.4]} 25... Qg5 {[%clk 0:01:37.6]} 26. Ne5 {[%clk 0:01:07.9]} 26...
Nd6 {[%clk 0:01:17.1]} 27. Rg4 {[%clk 0:01:04.4]} 27... Qf5 {[%clk 0:01:17]} 28.
Qxf5 {[%clk 0:00:53]} 28... Nxf5 {[%clk 0:01:17.9]} 29. Nc6 {[%clk 0:00:49.6]}
29... Rde8 {[%clk 0:01:05.8]} 30. Rge4 {[%clk 0:00:49.1]} 30... Rxe4 {[%clk
0:01:03.8]} 31. Rxe4 {[%clk 0:00:50]} 31... N7d6 {[%clk 0:01:03.7]} 32. Re6
{[%clk 0:00:43.6]} 32... Nb5 {[%clk 0:01:03.2]} 33. Nxb4 {[%clk 0:00:38]} 33...
Ne3 {[%clk 0:00:58.2]} 34. c4 {[%clk 0:00:33.8]} 34... dxc3 {[%clk 0:00:52]} 35.
bxc3 {[%clk 0:00:28.7]} 35... Rf1+ {[%clk 0:00:51.7]} 36. Kh2 {[%clk 0:00:28.2]}
36... Nf5 {[%clk 0:00:52.3]} 37. c4 {[%clk 0:00:24.1]} 37... Nc3 {[%clk
0:00:50.6]} 38. Nc5 {[%clk 0:00:19.4]} 38... h5 {[%clk 0:00:42.1]} 39. h4 {[%clk
0:00:16.4]} 39... Ne2 {[%clk 0:00:35.8]} 40. Rxg6+ {[%clk 0:00:14.8]} 40... Kh7
{[%clk 0:00:36]} 41. Rg5 {[%clk 0:00:14.8]} 41... Neg3 {[%clk 0:00:36.4]} 42.
Rxg3 {[%clk 0:00:13.3]} 42... Nxg3 {[%clk 0:00:30.6]} 43. Kxg3 {[%clk
0:00:14.2]} 43... Ra1 {[%clk 0:00:31]} 44. Nbxa6 {[%clk 0:00:13.6]} 44... Rxa5
{[%clk 0:00:31.3]} 45. d4 {[%clk 0:00:13.8]} 45... c6 {[%clk 0:00:29.3]} 46. Kf4
{[%clk 0:00:13]} 46... Ra2 {[%clk 0:00:29.1]} 47. g3 {[%clk 0:00:13]} 47... Kg6
{[%clk 0:00:28.9]} 48. g4 {[%clk 0:00:12.7]} 48... hxg4 {[%clk 0:00:27.8]} 49.
Kxg4 {[%clk 0:00:13.6]} 49... Rc2 {[%clk 0:00:28.1]} 50. Kf4 {[%clk 0:00:14.5]}
50... Rxc4 {[%clk 0:00:28]} 51. Ke5 {[%clk 0:00:15.4]} 51... Kh5 {[%clk
0:00:27.8]} 52. Nb8 {[%clk 0:00:15.2]} 52... Kxh4 {[%clk 0:00:27.5]} 53. Nxc6
{[%clk 0:00:16.1]} 53... Rxd4 {[%clk 0:00:27.9]} 54. Kxd4 {[%clk 0:00:15.8]}
1/2-1/2

[Event "*** Titled Tuesday Blitz"]
[Site "Chess.com"]
[Date "2021.02.16"]
[Round "1"]
[White "Spriteball"]
[Black "kikydu96"]
[Result "0-1"]
[WhiteElo "2323"]
[BlackElo "2625"]
[TimeControl "180+1"]
[EndTime "10:07:35 PST"]
[Termination "kikydu96 won by resignation"]

1. e4 {[%clk 0:03:00.9]} 1... c5 {[%clk 0:02:53.1]} 2. Nf3 {[%clk 0:03:00.7]}
2... d6 {[%clk 0:02:48.2]} 3. d4 {[%clk 0:03:00.5]} 3... cxd4 {[%clk 0:02:42.5]}
4. Nxd4 {[%clk 0:03:01.4]} 4... Nf6 {[%clk 0:02:39.4]} 5. Nc3 {[%clk 0:03:01.5]}
5... Nc6 {[%clk 0:02:38.3]} 6. Bg5 {[%clk 0:02:49.3]} 6... e6 {[%clk 0:02:36.7]}
7. Be2 {[%clk 0:02:46.6]} 7... Be7 {[%clk 0:02:33.5]} 8. O-O {[%clk 0:02:40.1]}
8... Nxe4 {[%clk 0:02:24.8]} 9. Bxe7 {[%clk 0:02:30.7]} 9... Nxc3 {[%clk
0:02:24]} 10. Bxd8 {[%clk 0:02:26.6]} 10... Nxd1 {[%clk 0:02:23.4]} 11. Nxc6
{[%clk 0:02:22.6]} 11... Nxb2 {[%clk 0:02:11.6]} 12. Bb5 {[%clk 0:01:55.2]}
12... Bd7 {[%clk 0:02:08.7]} 13. Nxa7 {[%clk 0:01:08.1]} 13... Kxd8 {[%clk
0:01:33.8]} 14. Rfb1 {[%clk 0:00:50.9]} 14... Rxa7 {[%clk 0:01:24.7]} 15. Rxb2
{[%clk 0:00:47]} 15... Bxb5 {[%clk 0:01:24.9]} 16. Rxb5 {[%clk 0:00:47.9]} 16...
Kc7 {[%clk 0:01:24.6]} 17. Kf1 {[%clk 0:00:39.5]} 17... Rha8 {[%clk 0:01:22.4]}
18. Rb2 {[%clk 0:00:37.6]} 18... Ra3 {[%clk 0:01:22.8]} 19. Ke2 {[%clk
0:00:37.1]} 19... R8a5 {[%clk 0:01:17.1]} 20. Rab1 {[%clk 0:00:22.3]} 20... b5
{[%clk 0:01:12.4]} 21. Rxb5 {[%clk 0:00:20.2]} 21... Rxb5 {[%clk 0:01:12.9]} 22.
Rxb5 {[%clk 0:00:21.1]} 22... Rxa2 {[%clk 0:01:13.2]} 23. Kd3 {[%clk 0:00:21.5]}
23... Kc6 {[%clk 0:01:11.9]} 24. Rb3 {[%clk 0:00:21]} 24... Ra5 {[%clk
0:01:08.9]} 25. Rc3+ {[%clk 0:00:21.2]} 25... Rc5 {[%clk 0:01:08.8]} 26. Ra3
{[%clk 0:00:21.5]} 26... Rd5+ {[%clk 0:01:06.9]} 27. Ke2 {[%clk 0:00:21.7]}
27... h5 {[%clk 0:01:04.5]} 28. Ra7 {[%clk 0:00:21.4]} 28... Rf5 {[%clk
0:01:02.6]} 29. h4 {[%clk 0:00:21.8]} 29... g6 {[%clk 0:00:54.2]} 30. g3 {[%clk
0:00:21.9]} 30... Kd5 {[%clk 0:00:51.1]} 31. Ra5+ {[%clk 0:00:21.4]} 31... Kc4
{[%clk 0:00:49.2]} 32. Ra6 {[%clk 0:00:18.9]} 32... d5 {[%clk 0:00:44.7]} 33.
Ra3 {[%clk 0:00:17.7]} 33... Re5+ {[%clk 0:00:42.9]} 34. Kd2 {[%clk 0:00:17.6]}
34... Re4 {[%clk 0:00:41.2]} 35. Rf3 {[%clk 0:00:17.1]} 35... f5 {[%clk
0:00:40]} 36. Ra3 {[%clk 0:00:16.8]} 36... Kd4 {[%clk 0:00:38.1]} 37. Ra4+
{[%clk 0:00:16.1]} 37... Ke5 {[%clk 0:00:38.4]} 38. Ra8 {[%clk 0:00:14.9]} 38...
f4 {[%clk 0:00:36]} 39. Rg8 {[%clk 0:00:12.3]} 39... fxg3 {[%clk 0:00:35.3]} 40.
fxg3 {[%clk 0:00:13.2]} 40... Rg4 {[%clk 0:00:35]} 41. Rf8 {[%clk 0:00:09.3]}
41... Rxg3 {[%clk 0:00:34.7]} 42. Rf2 {[%clk 0:00:09.1]} 42... Rg4 {[%clk
0:00:34.4]} 43. Re2+ {[%clk 0:00:09.1]} 43... Kf5 {[%clk 0:00:34.2]} 44. Rf2+
{[%clk 0:00:09.5]} 44... Rf4 {[%clk 0:00:34.4]} 45. Rh2 {[%clk 0:00:08.9]} 45...
e5 {[%clk 0:00:34.6]} 46. Kd3 {[%clk 0:00:07.3]} 46... Rf3+ {[%clk 0:00:33]} 47.
Ke2 {[%clk 0:00:07.3]} 47... Rg3 {[%clk 0:00:31.8]} 48. Kd2 {[%clk 0:00:05.6]}
48... Kg4 {[%clk 0:00:31.1]} 49. Re2 {[%clk 0:00:05.3]} 49... e4 {[%clk
0:00:30.4]} 50. c4 {[%clk 0:00:05.2]} 50... Kxh4 {[%clk 0:00:27.8]} 51. Rxe4+
{[%clk 0:00:06.1]} 0-1